bitfinex/quotes_ETHUSD_20220220
["timestamp","ask_amount","ask_price","bid_price","bid_amount"]
[1645365523554,1.43081862,2640.2,2640.1,0.00255634]
[1645365524604,1.43081862,2640.2,2639.8,0.16420762]
[1645365524803,1.43081862,2640.2,2640.0,0.00255644]
[1645365525801,1.0,2640.1,2639.8,0.16420762]
[1645365526004,1.0,2640.1,2640.0,0.00255649]
[1645365526203,0.00202662,2639.9,2639.7,0.30166674]
[1645365527106,0.00202662,2639.9,2639.8,1.11641619]
[1645365527954,0.00202662,2639.9,2639.8,1.41641619]
[1645365528152,0.00202662,2639.9,2639.8,12.99641619]
[1645365528660,0.00202662,2639.9,2639.8,14.05322168]
[1645365528857,30.0,2640.6,2639.7,2.19463]
[1645365529057,5.0,2640.2,2639.3,0.06434138]
[1645365529269,26.0,2639.8,2638.9,0.71723745]
[1645365529465,3.83793266,2639.7,2638.5,0.71346709]
[1645365529658,3.83793266,2639.7,2638.1,11.18]
[1645365529659,1.0,2639.1,2638.6,3.5]
[1645365529856,0.91327211,2638.8,2638.2,0.8367572]
[1645365530061,1.0,2638.8,2638.2,0.8367572]
[1645365530257,1.0,2638.6,2638.0,0.00307011]
[1645365530653,1.0,2639.0,2637.1,0.95128946]
[1645365530654,1.0,2638.5,2637.1,0.95128946]
[1645365530859,8.83803266,2638.9,2638.0,0.0102081]
[1645365530860,1.0,2638.1,2638.0,0.0102081]
[1645365531256,1.0,2638.1,2638.0,8.1e-06]
[1645365531257,0.94357891,2638.1,2638.0,8.1e-06]
[1645365531463,1.0,2638.1,2638.0,8.1e-06]
[1645365531712,1.0,2638.1,2636.8,2.57724895]
[1645365531713,4.56630934,2638.1,2636.8,2.57724895]
[1645365531915,1.1895,2638.0,2636.8,2.57724895]
[1645365532118,1.0,2637.5,2636.8,2.57724895]
[1645365532512,1.0,2637.5,2636.6,0.00348749]
[1645365532913,1.0,2637.5,2636.9,1.08212297]
[1645365533113,1.0,2637.5,2636.9,1.68212297]
[1645365533317,25.5,2637.4,2636.4,3.52587895]
[1645365533525,5.0,2637.2,2636.6,0.00361404]
[1645365533719,5.0,2636.9,2636.6,0.00361404]
[1645365533921,5.0,2636.9,2635.7,1.5652]
[1645365533922,1.0,2636.7,2635.7,1.5652]
[1645365534118,3.75580934,2636.6,2635.8,0.00357916]
[1645365534318,1.0,2636.0,2635.8,0.00357916]
[1645365534516,1.0,2636.0,2635.7,1.06877916]
[1645365534723,1.0,2635.9,2635.7,1.0652]
[1645365534915,1.0,2635.8,2635.7,1.06877916]
[1645365535126,1.0,2635.8,2635.7,1.0652]
[1645365535321,1.0,2636.0,2635.7,1.0652]
[1645365535554,1.0,2636.6,2635.8,0.00357916]
[1645365535753,1.0,2636.2,2635.7,1.6652]
[1645365535955,1.0,2636.2,2635.8,0.00357916]
[1645365536152,1.0,2636.2,2635.8,1.01437076]
[1645365536753,1.0,2636.0,2635.8,0.00357916]
[1645365536952,1.0,2636.0,2635.9,0.00252854]
[1645365537155,0.1895,2636.4,2635.9,0.00252854]
[1645365537363,1.0,2636.0,2635.9,0.00252854]
[1645365537753,1.0,2636.0,2635.9,0.00177445]
[1645365540408,1.0,2636.2,2635.9,0.00177445]
[1645365540604,1.0,2636.7,2635.9,0.00177445]
[1645365541206,2.02717811,2636.7,2636.1,0.97769096]
[1645365541406,1.0,2636.6,2636.2,0.00357916]
[1645365541605,1.02717811,2636.7,2636.2,0.00252825]
[1645365542004,1.0,2636.3,2636.2,0.00252825]
[1645365542406,1.88288633,2636.3,2636.2,0.00252825]
[1645365542609,1.88288633,2636.3,2635.9,0.01865754]
[1645365542960,1.1895,2636.9,2636.2,0.5]
[1645365543151,1.1895,2636.9,2636.3,0.00357916]
[1645365543549,1.0,2636.4,2636.3,0.00357916]
[1645365543749,1.0,2636.4,2635.9,0.01865754]
[1645365544049,1.1895,2636.9,2636.2,0.5]
[1645365544050,5.1895,2636.8,2636.2,0.5]
[1645365544248,5.1895,2636.8,2636.1,0.01011338]
[1645365544448,1.0,2636.7,2636.1,0.01011338]
[1645365544648,1.0,2636.2,2636.1,0.01011338]
[1645365545053,1.0,2636.2,2635.9,0.01865754]
[1645365545255,1.0,2636.3,2635.9,0.02877169]
[1645365545448,1.0,2636.7,2636.0,0.5]
[1645365545648,1.1895,2636.7,2636.0,0.5]
[1645365545848,0.1895,2636.7,2636.1,0.00357916]
[1645365546048,1.1895,2636.9,2636.1,0.00357916]
[1645365546250,1.0,2636.2,2636.1,0.00357916]
[1645365546551,1.0,2636.2,2636.0,0.5]
[1645365546998,1.0,2636.1,2636.0,0.5]
[1645365547199,1.0,2636.1,2636.0,0.50357916]
[1645365547402,1.0,2636.1,2636.0,0.5]
[1645365548100,1.0,2636.1,2635.5,0.00965773]
[1645365548101,0.8668865,2635.7,2635.5,0.00965773]
[1645365548501,0.8668865,2635.7,2635.3,0.30357916]
[1645365549502,1.8668865,2635.7,2635.3,0.30357916]
[1645365551056,1.0,2635.6,2635.3,0.00357916]
[1645365551357,1.0,2635.4,2635.0,0.00303528]
[1645365551752,1.0,2635.1,2635.0,0.00303528]
[1645365551955,1.93090157,2635.1,2635.0,0.00303528]
[1645365552152,1.93090157,2635.1,2634.3,0.00357916]
[1645365552353,1.93090157,2635.1,2634.9,0.00252342]
[1645365552558,1.0,2635.0,2634.9,0.00252342]
[1645365553354,1.0,2635.0,2633.6,0.01255638]
[1645365553355,4.3070423,2635.0,2633.6,0.01613554]
[1645365553555,3.30871507,2634.9,2634.8,0.00252351]
[1645365553756,2.7686,2634.9,2634.8,0.00252351]
[1645365553953,2.7686,2634.9,2634.4,0.01009556]
[1645365553954,5.0,2634.8,2634.4,0.01009556]
[1645365554399,1.0,2634.5,2633.3,0.94976]
[1645365554602,1.00102299,2634.3,2633.3,1.93796239]
[1645365554800,1.0,2634.1,2633.3,0.94976]
[1645365555200,1.0,2633.9,2633.3,0.94976]
[1645365555407,1.0,2633.5,2632.3,4.29862]
[1645365555806,0.98503717,2633.1,2632.4,1.14455898]
[1645365556001,1.0,2633.3,2632.4,1.14455898]
[1645365556200,1.0,2633.0,2632.5,0.04490545]
[1645365557202,1.0,2633.0,2632.5,0.10197799]
[1645365557605,1.0,2633.0,2632.6,0.04433703]
[1645365558057,3.50618348,2633.2,2632.6,0.04433703]
[1645365558058,1.0,2632.8,2632.6,0.04433703]
[1645365558261,3.50618348,2633.2,2632.6,0.04433703]
[1645365558262,1.0,2632.7,2632.6,0.04433703]
[1645365558461,1.0,2632.7,2632.5,0.04490545]
[1645365558658,3.50618348,2632.6,2632.3,0.00997751]
[1645365558857,3.69608348,2633.2,2632.3,0.00997751]
[1645365559057,1.0,2632.4,2632.3,0.00997751]
[1645365559462,4.50618348,2632.4,2632.3,0.0460423]
[1645365559860,4.50618348,2632.4,2632.2,0.00249443]
[1645365560061,3.50618348,2632.3,2632.2,0.00249443]
[1645365560263,1.0,2632.3,2632.2,9.443e-05]
[1645365560465,2.0,2632.3,2632.2,0.04670515]
[1645365560667,0.23648928,2632.2,2631.1,0.85209165]
[1645365560861,1.03974963,2631.7,2631.1,0.85209165]
[1645365561360,1.0,2631.2,2630.6,0.95077]
[1645365561806,1.0,2631.1,2630.6,0.95077]
[1645365562104,3.69618348,2632.0,2630.6,0.95077]
[1645365562105,1.0,2631.5,2630.6,0.95077]
[1645365562806,1.0,2631.5,2631.4,1.18266516]
[1645365563208,0.19,2632.4,2631.4,1.78266516]
[1645365563209,1.0,2631.6,2631.4,1.78266516]
[1645365563406,1.0,2632.2,2631.4,13.36266516]
[1645365563804,1.0,2632.4,2631.5,1.0]
[1645365564008,3.9816,2632.6,2632.2,0.83813447]
[1645365564203,3.50618348,2632.5,2632.2,0.3]
[1645365564408,4.50618348,2632.5,2631.4,3.15043]
[1645365564604,1.0,2632.3,2631.8,0.00245762]
[1645365565105,2.8144,2633.3,2631.8,0.00245762]
[1645365565106,1.0,2632.4,2631.8,1.90289762]
[1645365565304,1.0,2632.4,2632.2,1.34206608]
[1645365565547,1.0,2632.4,2632.2,1.64206608]
[1645365566557,1.0,2632.4,2632.2,0.3]
[1645365566750,1.0,2632.4,2632.3,0.3]
[1645365567150,1.0,2632.4,2632.2,0.3]
[1645365567352,1.0,2632.5,2632.1,0.30245739]
[1645365567551,1.0,2632.5,2632.1,0.00245739]
[1645365567750,1.0,2632.5,2632.1,0.95266739]
[1645365568050,1.0,2632.5,2632.2,0.3]
[1645365568251,1.0,2632.4,2632.2,0.6]
[1645365568450,1.0,2632.4,2632.3,1.08614405]
[1645365568658,1.0,2632.6,2632.3,1.08614405]
[1645365568951,1.0,2632.6,2632.3,1.38614405]
[1645365569207,1.0,2632.8,2632.3,3.28628405]
[1645365569404,1.0,2633.0,2632.4,2.84956]
[1645365569800,1.0,2633.2,2632.5,0.3]
[1645365570107,1.0,2633.1,2632.8,0.3]
[1645365570704,1.0,2633.1,2632.6,0.3]
[1645365571306,1.0,2633.1,2632.4,1.6]
[1645365571501,1.0,2633.1,2632.5,1.11668411]
[1645365571702,1.0,2633.1,2632.4,1.3]
[1645365572603,1.0,2633.1,2632.6,0.00297101]
[1645365573450,1.14964056,2632.9,2632.6,0.00297101]
[1645365573656,1.14964056,2632.9,2632.2,0.00982898]
[1645365573657,0.003754,2632.5,2632.2,0.00982898]
[1645365573860,0.003754,2632.5,2630.8,2.52270368]
[1645365574050,1.0,2632.4,2632.2,0.00982898]
[1645365574250,0.003754,2632.5,2632.2,0.00982898]
[1645365574451,1.17542069,2632.4,2632.2,0.00982898]
[1645365574648,1.0,2632.3,2632.2,0.00982898]
[1645365575050,1.0,2632.3,2630.7,3.8009]
[1645365575252,11.53348348,2632.2,2631.7,0.00296251]
[1645365575451,9.0273,2632.2,2631.7,0.00296251]
[1645365575656,1.0,2631.8,2631.7,0.00296251]
[1645365576252,1.0,2631.8,2631.3,1.0077008]
[1645365577311,1.0,2631.8,2631.3,1.6077008]
[1645365577512,1.0,2631.8,2631.3,0.6]
[1645365577712,1.0,2631.8,2631.4,0.002458]
[1645365578417,9.2172,2632.2,2631.4,0.002458]
[1645365578619,6.1905,2632.2,2631.3,2.55054]
[1645365578815,5.1905,2632.2,2631.3,2.55054]
[1645365579017,5.1905,2632.2,2631.5,0.00245795]
[1645365579215,1.0,2632.3,2631.8,1.18807873]
[1645365579816,1.003754,2632.5,2631.8,1.48807873]
[1645365580018,1.003754,2632.5,2631.9,0.00245753]
[1645365580019,1.0,2632.3,2631.9,0.00245753]
[1645365581059,1.0,2632.2,2631.5,0.3]
[1645365581260,1.0,2632.2,2632.0,0.00245748]
[1645365581765,0.87437416,2632.1,2632.0,0.00245748]
[1645365582156,1.87437416,2632.1,2631.4,0.93404014]
[1645365582555,1.87437416,2632.1,2631.9,0.00245753]
[1645365582556,0.87437416,2632.1,2631.9,0.00245753]
[1645365583257,4.50618348,2632.0,2631.9,0.00245753]
[1645365583456,1.0,2632.0,2631.4,0.93404014]
[1645365583656,4.50618348,2632.0,2631.9,0.00245758]
[1645365583857,3.50618348,2632.0,2631.9,0.00245758]
[1645365584057,4.50618348,2632.0,2631.9,0.00245758]
[1645365584704,4.50618348,2632.0,2631.3,0.6]
[1645365584705,4.50618348,2632.0,2631.3,0.3]
[1645365585002,3.50618348,2632.0,2631.8,0.00245762]
[1645365585606,1.0,2631.9,2631.8,0.00245762]
[1645365585803,4.50618348,2631.9,2630.9,0.95640195]
[1645365586002,0.96168724,2631.5,2630.9,0.95640195]
[1645365586202,1.0,2631.5,2631.4,0.00983215]
[1645365587107,1.0,2631.5,2630.9,2.50707195]
[1645365587308,8.4977,2631.8,2631.3,0.00245809]
[1645365587309,1.0,2631.6,2631.3,0.00245809]
[1645365587504,1.0,2631.6,2631.3,0.84487073]
[1645365587709,8.4977,2631.8,2631.3,1.44487073]
[1645365587710,1.0,2631.7,2631.3,1.44487073]
[1645365587960,0.19,2632.1,2631.3,3.34572073]
[1645365587961,9.0973,2632.1,2631.3,3.34572073]
[1645365588158,9.0973,2632.1,2631.3,3.34326264]
[1645365588358,13.46278348,2632.6,2631.4,1.0]
[1645365588359,1.0,2632.2,2631.4,1.0]
[1645365588560,1.0,2632.2,2631.4,1.00245804]
[1645365588757,1.003754,2632.5,2632.2,1.32991427]
[1645365588957,1.003754,2632.5,2631.4,1.00245804]
[1645365589358,1.0,2632.4,2631.4,1.0]
[1645365589755,1.0,2632.3,2631.4,1.0]
[1645365589957,1.0,2632.3,2631.8,0.00245762]
[1645365590360,1.89343713,2632.3,2631.8,0.00245762]
[1645365590659,1.0,2632.3,2631.6,2.57376149]
[1645365590861,1.0,2632.3,2631.9,0.00245753]
[1645365591259,1.0,2632.4,2631.9,0.00245753]
[1645365591459,0.003754,2632.5,2631.9,0.00245753]
[1645365591704,0.003754,2632.5,2632.0,1.18100253]
[1645365591907,0.003754,2632.5,2631.7,1.90053]
[1645365592126,0.003754,2632.5,2631.6,0.3]
[1645365592307,0.003754,2632.5,2631.4,1.3]
[1645365592308,1.0,2632.1,2631.7,0.3]
[1645365592505,1.0,2632.1,2631.4,1.6]
[1645365592704,1.0,2631.9,2631.4,1.6]
[1645365592906,1.0,2631.9,2631.6,0.00242111]
[1645365593107,1.0,2631.9,2631.6,1.01783002]
[1645365593405,1.0,2632.2,2631.6,1.61783002]
[1645365593804,1.0,2631.9,2631.6,1.61783002]
[1645365594206,1.0,2631.9,2631.6,2.61783002]
[1645365594505,1.00494556,2632.3,2631.6,1.62025711]
[1645365594506,1.0,2632.1,2631.6,1.62025711]
[1645365594810,1.0,2631.9,2631.6,0.6048482]
[1645365595205,1.0,2631.9,2631.6,0.3048482]
[1645365595461,1.0,2631.9,2631.6,0.30242111]
[1645365595751,2.15884826,2631.9,2631.6,0.0048482]
[1645365596351,1.0,2631.7,2631.6,0.0048482]
[1645365596550,0.99863952,2631.7,2631.6,0.00242111]
[1645365596953,1.4088,2632.2,2631.6,0.0048482]
[1645365597152,0.99963952,2631.9,2631.6,0.0048482]
[1645365597552,0.99963952,2632.1,2631.6,0.0048482]
[1645365597752,0.99963952,2632.1,2631.3,1.55055]
[1645365598154,0.99963952,2632.1,2631.6,1.07828981]
[1645365598354,4.505823,2632.1,2631.6,0.00242709]
[1645365598554,0.99963952,2632.1,2631.6,0.00242709]
[1645365599053,0.99963952,2632.1,2631.3,1.55055]
[1645365599312,0.99963952,2632.1,2631.7,0.00242699]
[1645365600306,0.99963952,2632.1,2631.4,0.97737077]
[1645365600507,0.99963952,2632.1,2631.8,0.00242695]
[1645365601606,0.99963952,2632.1,2631.8,0.0024269]
[1645365602608,0.99963952,2632.1,2631.3,1.55055]
[1645365603055,0.99963952,2632.1,2631.8,0.0024269]
[1645365603056,1.6143655,2632.0,2631.8,0.0024269]
[1645365603251,0.99963952,2631.9,2631.8,0.0024269]
[1645365603853,0.99963952,2631.9,2631.1,2.20101]
[1645365603854,2.61387498,2631.9,2631.1,2.20101]
[1645365604051,2.61387498,2631.9,2631.7,0.00242699]
[1645365604256,3.50618348,2632.0,2631.8,0.22998075]
[1645365604452,1.61446091,2631.9,2631.8,0.22998075]
[1645365604650,5.12064439,2631.9,2631.8,0.22998075]
[1645365604852,6.12028391,2631.9,2631.8,0.22998075]
[1645365605456,6.12028391,2631.9,2631.3,0.00970943]
[1645365605457,1.0361413,2631.5,2631.3,0.00970943]
[1645365606057,4.49963952,2631.4,2631.3,0.00970943]
[1645365606255,4.49963952,2631.4,2630.6,1.90136]
[1645365606256,2.61436908,2631.4,2630.3,1.90223946]
[1645365606455,3.5,2631.3,2630.6,0.3]
[1645365606708,3.5,2631.3,2630.4,0.3]
[1645365606709,0.99963952,2631.1,2630.4,0.3]
[1645365606910,1.91281285,2631.1,2630.5,1.19351569]
[1645365607311,1.91281285,2631.1,2630.5,0.3]
[1645365607510,0.99963952,2631.0,2630.4,0.6]
[1645365607713,0.99963952,2631.0,2630.4,0.3]
[1645365607911,0.99963952,2630.7,2630.4,0.3]
[1645365609414,0.94963952,2630.7,2630.4,0.3]
[1645365609610,0.94963952,2630.7,2630.1,1.6]
[1645365609809,3.5,2631.0,2630.1,2.43840874]
[1645365610115,0.99963952,2630.7,2630.5,0.98201585]
[1645365610556,0.99963952,2631.0,2630.5,0.98201585]
[1645365610756,0.99963952,2631.0,2630.3,0.95092]
[1645365611154,0.99963952,2631.0,2630.4,0.3]
[1645365611562,0.99963952,2631.0,2630.6,0.00242194]
[1645365611756,0.99963952,2630.8,2630.4,0.15242194]
[1645365611956,2.07304708,2630.7,2630.3,0.3]
[1645365612156,2.07304708,2630.7,2630.2,0.30968921]
[1645365612356,2.07304708,2630.7,2630.2,0.3]
[1645365612558,2.07304708,2630.7,2630.6,0.001669]
[1645365612860,0.99963952,2630.7,2630.6,0.001669]
[1645365614304,0.99963952,2630.7,2630.6,1.84268528]
[1645365615203,0.99963952,2630.7,2630.6,2.44268528]
[1645365615405,0.99963952,2630.8,2630.6,2.44268528]
[1645365615601,0.99963952,2630.9,2630.7,0.00355184]
[1645365615803,0.99963952,2630.9,2630.6,2.44268528]
[1645365616003,0.99963952,2631.1,2630.6,5.94623712]
[1645365616204,0.99963952,2631.1,2630.7,0.00355184]
[1645365616404,2.7937,2631.2,2630.7,0.00355184]
[1645365617004,2.7937,2631.2,2631.0,1.16693104]
[1645365617206,5.1283,2631.4,2631.1,0.3]
[1645365617403,0.99963952,2631.5,2631.1,0.3]
[1645365617604,0.99963952,2631.5,2631.1,0.30355184]
[1645365619458,0.99963952,2631.5,2631.3,1.84101628]
[1645365619859,0.99963952,2631.4,2631.3,1.84101628]
[1645365621060,0.99963952,2631.5,2631.3,1.84101628]
[1645365621261,0.99963952,2631.5,2631.3,1.84456812]
[1645365621907,0.99963952,2631.5,2631.3,2.14456812]
[1645365622109,1.2907314,2631.7,2631.3,2.44456812]
[1645365622415,0.29109188,2631.7,2631.4,0.95045]
[1645365622606,0.29109188,2631.7,2631.5,0.8]
[1645365622907,0.29109188,2631.7,2631.6,0.98688865]
[1645365623505,0.29109188,2631.7,2631.5,0.6]
[1645365624308,0.24109188,2631.7,2631.5,0.6]
[1645365624508,0.24109188,2631.7,2631.5,1.72958909]
[1645365624910,0.24109188,2631.7,2631.6,1.84101628]
[1645365626353,0.24109188,2631.7,2631.6,2.14101628]
[1645365627755,0.24109188,2631.7,2631.6,2.14343739]
[1645365636060,0.19109188,2631.7,2631.6,2.14343739]
[1645365636262,0.19109188,2631.7,2631.6,1.84343739]
[1645365637633,0.19109188,2631.7,2631.6,2.14343739]
[1645365640010,0.99963952,2632.3,2631.6,14.67369739]
[1645365640215,1.00339352,2632.5,2631.8,0.3]
[1645365640458,1.00339352,2632.5,2632.0,1.87068814]
[1645365640459,0.003754,2632.5,2632.0,1.87068814]
[1645365640663,0.003754,2632.5,2632.2,0.92050814]
[1645365641064,0.003754,2632.5,2632.3,0.91460162]
[1645365641462,0.003754,2632.5,2632.3,1.20812134]
[1645365641661,1.00339352,2632.5,2632.3,0.29351972]
[1645365641868,1.61428873,2632.4,2632.2,1.22050814]
[1645365642062,2.56392825,2632.4,2632.2,1.22050814]
[1645365642262,0.003754,2632.5,2632.2,1.22050814]
[1645365642263,0.99963952,2632.3,2632.2,1.22050814]
[1645365643066,0.99963952,2632.4,2632.2,1.52050814]
[1645365644517,0.003754,2632.5,2632.2,1.52050814]
[1645365644710,0.003754,2632.5,2632.2,3.42087814]
[1645365645811,0.003754,2632.5,2632.4,0.92050814]
[1645365646108,0.003754,2632.5,2632.4,1.84101628]
[1645365646308,0.003754,2632.5,2632.4,2.44101628]
[1645365647117,0.003754,2632.5,2632.4,3.44101628]
[1645365647712,0.003754,2632.5,2632.4,2.44101628]
[1645365647961,0.003754,2632.5,2632.4,1.84101628]
[1645365648263,1.00339352,2632.5,2632.4,1.84101628]
[1645365649062,0.003754,2632.5,2632.4,1.84101628]
[1645365649264,0.003754,2632.5,2632.4,2.44101628]
[1645365649663,0.13819997,2633.4,2632.4,2.44101628]
[1645365649859,0.99963952,2633.6,2632.4,3.44101628]
[1645365650063,0.99963952,2633.6,2632.5,0.94983]
[1645365650259,0.99963952,2633.6,2632.6,0.3]
[1645365650461,0.99963952,2633.6,2633.3,0.9685629]
[1645365650659,0.99963952,2633.7,2633.3,0.9685629]
[1645365651063,0.99963952,2633.7,2633.5,0.92050814]
[1645365651362,9.3459,2634.0,2633.6,0.92050814]
[1645365651559,5.2027,2634.0,2633.6,1.22050814]
[1645365652213,5.2027,2634.0,2633.7,1.02582754]
[1645365652407,5.2027,2634.0,2633.7,3.22512754]
[1645365652606,0.99963952,2634.3,2633.7,3.22512754]
[1645365653010,0.99963952,2634.3,2633.7,1.8993]
[1645365653209,0.99963952,2634.0,2633.6,0.92050814]
[1645365653408,0.99963952,2633.8,2633.6,0.92050814]
[1645365653808,0.99963952,2633.7,2633.6,0.92050814]
[1645365654210,2.15535734,2633.7,2633.6,0.92050814]
[1645365657661,0.99963952,2633.7,2633.6,0.92050814]
[1645365658664,5.5,2633.6,2632.9,0.5]
[1645365658862,5.5,2633.6,2632.8,0.95008]
[1645365659062,0.99963952,2633.2,2632.8,0.95008]
[1645365659312,0.99963952,2633.4,2632.8,0.95008]
[1645365659510,1.00203515,2633.4,2632.8,0.95008]
[1645365659707,1.00203515,2633.4,2632.9,1.1647524]
[1645365660112,0.00239563,2633.4,2632.9,1.1647524]
[1645365660307,0.99963952,2633.5,2632.9,0.6]
[1645365660706,0.00239565,2633.3,2632.5,5.44996]
[1645365660906,0.00239565,2633.3,2632.5,6.04996]
[1645365661107,0.00239565,2633.3,2632.5,5.1]
[1645365661307,0.00239565,2633.3,2632.6,1.01012824]
[1645365661509,0.99963952,2633.5,2632.6,1.01012824]
[1645365661707,0.99963952,2633.5,2633.0,1.89972]
[1645365661910,0.00239554,2633.2,2633.0,1.89972]
[1645365662107,0.00239554,2633.2,2632.6,1.31012824]
[1645365662309,0.92287587,2633.2,2632.6,1.31012824]
[1645365662511,0.92287587,2633.2,2632.4,2.84977]
[1645365662709,0.99963952,2633.1,2632.4,2.84977]
[1645365663659,0.99963952,2633.1,2632.9,1.89974]
[1645365663859,0.99963952,2633.1,2632.9,2.39974]
[1645365664061,0.99963952,2633.3,2633.0,0.3]
[1645365664262,0.00241125,2633.2,2633.0,0.3]
[1645365665167,0.00091233,2633.4,2633.0,0.3]
[1645365665361,1.61473859,2633.4,2633.0,0.3]
[1645365665560,0.00241147,2633.2,2633.0,0.3]
[1645365666362,1.61473859,2633.4,2633.0,0.3]
[1645365666563,0.00241042,2633.2,2633.0,0.3]
[1645365667606,0.00091226,2633.2,2633.0,0.3]
[1645365667810,0.00332268,2633.2,2633.0,0.3]
[1645365668809,0.00091226,2633.2,2633.0,0.3]
[1645365669009,0.00332268,2633.2,2633.0,0.3]
[1645365670007,0.00091226,2633.2,2633.0,0.3]
[1645365670208,0.00332274,2633.2,2633.0,0.3]
[1645365671357,0.00332274,2633.2,2633.0,1.3735102]
[1645365672358,0.00091226,2633.2,2633.0,0.3]
[1645365672558,1.61390806,2633.4,2633.0,0.3]
[1645365672758,0.00241048,2633.2,2633.0,0.3]
[1645365673559,1.61390806,2633.4,2633.0,0.3]
[1645365673757,0.00241048,2633.2,2633.0,0.3]
[1645365674409,0.00241048,2633.2,2633.0,1.43746185]
[1645365674808,1.61380996,2633.6,2633.0,1.33746185]
[1645365675015,0.00241048,2633.2,2633.0,1.33746185]
[1645365675211,0.00241048,2633.2,2633.0,0.2]
[1645365676012,1.61380996,2633.6,2633.0,0.2]
[1645365676311,0.00241048,2633.2,2633.0,0.2]
[1645365677111,1.61380996,2633.6,2633.0,0.2]
[1645365677411,0.00241048,2633.2,2633.0,0.2]
[1645365678461,1.61380996,2633.6,2633.0,0.2]
[1645365678658,0.00241048,2633.2,2633.0,0.2]
[1645365679161,0.00241048,2633.2,2633.0,1.14985]
[1645365679360,0.00241048,2633.2,2633.1,3.5]
[1645365679562,3.1636,2634.2,2633.1,3.8]
[1645365679760,1.61353084,2634.1,2633.3,0.3]
[1645365679961,1.61353084,2634.1,2633.3,3.8]
[1645365680161,1.61353084,2634.1,2633.3,1.24975]
[1645365680362,1.61353084,2634.1,2633.4,1.0]
[1645365680562,1.61353084,2634.1,2633.4,0.3]
[1645365681264,0.0024103,2633.9,2633.4,0.3]
[1645365681910,1.61353084,2634.0,2633.4,0.3]
[1645365682411,0.00241033,2633.8,2633.4,0.3]
[1645365682613,0.00241033,2633.8,2633.3,0.3]
[1645365683213,1.61353084,2634.0,2633.3,0.3]
[1645365683415,0.00241036,2633.7,2633.3,0.3]
[1645365684011,0.00241036,2633.7,2633.3,1.3]
[1645365684413,1.61353084,2633.7,2633.3,1.3]
[1645365684612,0.00241036,2633.6,2633.3,1.3]
[1645365685664,1.61353084,2634.1,2633.3,1.3]
[1645365685864,1.61353084,2634.1,2633.7,0.90990112]
[1645365686367,1.61353084,2634.1,2633.7,1.50990112]
[1645365686763,0.99963952,2633.8,2633.7,1.50990112]
[1645365687163,2.61317036,2633.8,2633.7,0.6]
[1645365687363,2.61317036,2633.8,2633.7,0.3]
[1645365687564,2.61317036,2633.8,2633.3,1.3]
[1645365687764,1.61353084,2633.7,2633.3,1.6]
[1645365688163,1.615943,2633.7,2633.3,1.6]
[1645365688868,1.615943,2633.7,2633.4,0.887545]
[1645365689066,1.615943,2633.7,2633.4,4.387545]
[1645365689313,1.61353084,2633.7,2633.5,4.5]
[1645365689517,0.99963952,2633.9,2633.6,3.5]
[1645365689716,0.99963952,2634.0,2633.6,0.3]
[1645365689916,3.1553,2634.7,2633.7,11.58]
[1645365690116,1.61324718,2634.6,2633.8,1.89871]
[1645365690313,1.61324718,2634.5,2634.4,0.85745925]
[1645365690716,1.61324718,2634.8,2634.4,2.10676925]
[1645365690914,1.61324718,2634.7,2634.4,3.40676925]
[1645365691113,1.61324718,2634.6,2634.4,3.40676925]
[1645365691313,1.1497,2635.0,2634.4,3.40676925]
[1645365691520,1.61312368,2634.9,2634.4,3.40676925]
[1645365691717,0.00225301,2634.6,2634.4,3.40676925]
[1645365691914,1.61312368,2634.9,2634.4,3.40676925]
[1645365692115,1.61312368,2634.9,2634.4,4.12926925]
[1645365692714,1.61312368,2634.8,2634.4,4.12926925]
[1645365692962,3.1444,2635.3,2634.5,3.5]
[1645365693161,1.61302958,2635.2,2634.5,3.5]
[1645365693563,1.61302958,2635.2,2634.6,1.0]
[1645365693766,1.61302958,2635.2,2634.7,3.5]
[1645365693961,1.61302958,2635.2,2634.8,0.94916]
[1645365694167,1.61302958,2635.2,2634.9,0.3]
[1645365694361,1.61302958,2635.2,2634.8,0.94916]
[1645365694362,1.61302958,2635.1,2634.8,0.86577066]
[1645365694565,1.61302958,2635.0,2634.8,0.56577066]
[1645365694761,0.97700189,2635.3,2634.8,0.56577066]
[1645365694964,1.61303964,2635.2,2634.8,0.86577066]
[1645365695362,1.61567411,2635.2,2634.8,0.86577066]
[1645365695561,1.61567411,2635.2,2634.8,0.56577066]
[1645365696365,1.61303964,2635.2,2634.8,0.56577066]
[1645365696564,0.00263448,2635.1,2634.7,1.89832]
[1645365696818,0.00263448,2635.1,2634.7,2.19832]
[1645365697611,1.61303964,2635.2,2634.7,2.19832]
[1645365697813,0.00263451,2635.0,2634.7,1.89832]
[1645365698714,2.32105255,2635.2,2634.7,1.89832]
[1645365698912,1.61303964,2635.1,2634.7,1.89832]
[1645365699116,1.61567416,2635.0,2634.7,1.89832]
[1645365699319,1.61303964,2634.9,2634.7,1.89832]
[1645365699514,1.61303964,2634.8,2634.7,2.19832]
[1645365699718,0.00263452,2635.0,2634.7,2.49832]
[1645365699916,1.61308908,2635.3,2634.7,2.49832]
[1645365700315,0.00263455,2634.9,2634.7,2.49832]
[1645365701158,2.66267639,2635.3,2634.7,2.49832]
[1645365701361,1.61308908,2635.2,2634.7,2.49832]
[1645365701559,0.00263453,2634.9,2634.7,2.49832]
[1645365702361,1.61308908,2635.2,2634.7,2.49832]
[1645365702560,0.00190488,2634.9,2634.7,2.49832]
[1645365703169,2.96539497,2635.8,2634.7,2.49832]
[1645365703170,0.1897,2635.8,2634.9,0.94901]
[1645365703364,5.0622,2636.3,2635.2,11.58]
[1645365703365,5.77021291,2636.3,2635.2,11.58]
[1645365703562,5.0622,2636.3,2635.2,0.3]
[1645365703760,5.0622,2636.3,2635.2,0.6]
[1645365703962,5.77021291,2636.3,2635.2,0.6]
[1645365704415,0.96260417,2636.1,2635.4,1.11247224]
[1645365704620,0.70801291,2636.0,2635.1,1.89786]